bitfinex-derivatives/quotes_BNBF0:USTF0_20250617
["timestamp","ask_amount","ask_price","bid_price","bid_amount"]
[1750149159402,0.26422687,658.79,658.3,2.56600211]
[1750149160098,0.26422687,658.79,658.3,1.437]
[1750149160301,0.26422687,658.79,658.3,2.56600211]
[1750149160795,0.26422687,658.79,658.3,1.437]
[1750149161394,0.26422687,658.79,658.3,2.56600211]
[1750149161698,0.26422687,658.79,658.3,1.437]
[1750149162395,0.26422687,658.79,658.31,1.12900211]
[1750149163997,0.26422687,658.79,658.32,1.12900211]
[1750149164503,0.26422687,658.79,658.31,1.12900211]
[1750149164699,0.26422687,658.79,658.32,1.12900211]
[1750149165199,1.13562996,659.21,658.3,2.56600211]
[1750149165503,0.26419678,658.83,658.33,1.568]
[1750149165704,0.30339805,659.2,658.33,1.568]
[1750149165998,0.26416269,658.83,658.33,1.568]
[1750149166198,0.30339805,659.2,658.34,1.546]
[1750149166400,0.26416269,658.83,658.34,1.546]
[1750149166803,0.30339805,659.2,658.34,1.546]
[1750149167003,0.26416169,658.83,658.34,1.546]
[1750149167204,0.30339805,659.2,658.34,1.546]
[1750149167705,0.26416169,658.83,658.34,1.546]
[1750149168004,0.26415667,658.99,658.34,1.546]
[1750149171307,0.26415667,658.99,658.35,1.022]
[1750149177106,0.26415667,658.99,658.35,2.15100211]
[1750149177508,0.26415667,658.99,658.35,1.022]
[1750149182716,0.26415667,658.99,658.36,1.247]
[1750149192331,0.26415667,658.99,658.37,1.372]
[1750149194428,1.13562996,658.98,658.37,1.372]
[1750149194625,1.13562996,658.97,658.37,1.372]
[1750149195323,1.13562996,658.96,658.37,1.372]
[1750149195722,1.13562996,658.96,658.38,1.086]
[1750149196523,1.13562996,658.97,658.38,1.086]
[1750149196723,1.13562996,658.96,658.38,1.086]
[1750149196927,1.13562996,658.95,658.38,1.086]
[1750149197123,1.13562996,658.96,658.38,1.086]
[1750149201331,1.13562996,658.97,658.38,1.086]
[1750149203333,1.13562996,658.96,658.38,1.086]
[1750149205038,1.13562996,658.97,658.38,1.086]
[1750149205534,1.13562996,658.96,658.38,1.086]
[1750149205738,1.13562996,658.97,658.39,1.458]
[1750149206640,1.13562996,658.96,658.39,1.458]
[1750149207341,1.13562996,658.97,658.39,1.458]
[1750149208740,1.13562996,658.96,658.39,1.458]
[1750149208941,1.13562996,658.97,658.39,1.458]
[1750149209736,1.13562996,658.96,658.39,1.458]
[1750149211338,1.13562996,658.97,658.39,1.458]
[1750149213444,1.13562996,658.98,658.39,1.458]
[1750149213644,1.13562996,658.97,658.39,1.458]
[1750149216247,1.13562996,658.96,658.39,1.458]
[1750149217244,1.13562996,658.95,658.39,1.458]
[1750149218347,1.13562996,658.96,658.39,1.458]
[1750149218747,1.13562996,658.97,658.39,1.458]
[1750149220148,1.13562996,658.96,658.39,1.458]
[1750149220548,1.13562996,658.97,658.39,1.458]
[1750149223046,1.13562996,658.96,658.39,1.458]
[1750149223251,1.13562996,658.96,658.4,1.067]
[1750149223653,1.13562996,658.96,658.41,1.384]
[1750149225251,1.13562996,658.98,658.41,1.384]
[1750149225452,1.13562996,658.97,658.41,1.384]
[1750149226358,1.13562996,658.98,658.41,1.384]
[1750149226657,1.13562996,658.97,658.41,1.384]
[1750149227457,1.13562996,658.96,658.41,1.384]
[1750149228055,1.13562996,658.95,658.41,1.384]
[1750149228558,1.13562996,658.94,658.41,1.384]
[1750149228754,1.13562996,658.95,658.41,1.384]
[1750149229255,1.13562996,658.95,658.42,1.073]
[1750149230662,1.13562996,658.95,658.43,1.097]
[1750149231763,1.13562996,658.94,658.43,1.097]
[1750149232466,1.13562996,658.92,658.43,1.097]
[1750149232961,1.13562996,658.91,658.43,1.097]
[1750149234369,1.13562996,658.9,658.43,1.097]
[1750149235567,1.13562996,658.89,658.43,1.097]
[1750149236276,1.13562996,658.91,658.43,1.097]
[1750149237377,1.13562996,658.92,658.43,1.097]
[1750149237577,1.13562996,658.93,658.44,1.061]
[1750149238077,1.13562996,658.94,658.44,1.061]
[1750149238676,1.13562996,658.97,658.44,1.061]
[1750149239175,1.13562996,658.96,658.44,1.061]
[1750149240282,1.13562996,658.95,658.44,1.061]
[1750149240987,0.26415667,658.99,658.44,1.061]
[1750149242579,0.26415667,658.99,658.45,0.987]
[1750149245677,1.13562996,658.98,658.45,0.987]
[1750149245883,0.26415667,658.99,658.45,0.987]
[1750149250385,1.13562996,658.97,658.45,0.987]
[1750149250789,1.13562996,658.96,658.45,0.987]
[1750149251278,1.13562996,658.95,658.45,0.987]
[1750149251679,1.13562996,658.94,658.45,0.987]
[1750149252181,1.13562996,658.92,658.46,1.549]
[1750149252379,1.13562996,658.91,658.46,1.549]
[1750149252579,1.13562996,658.93,658.46,1.549]
[1750149252982,1.13562996,658.92,658.46,1.549]
[1750149253278,1.13562996,658.93,658.46,1.549]
[1750149253478,1.13562996,658.92,658.46,1.549]
[1750149253677,1.13562996,658.91,658.46,1.549]
[1750149253880,1.13562996,658.92,658.46,1.549]
[1750149254080,1.13562996,658.92,658.47,1.347]
[1750149255681,1.13562996,658.93,658.47,1.347]
[1750149256485,1.13562996,658.94,658.47,1.347]
[1750149257385,1.13562996,658.95,658.47,1.347]
[1750149257583,1.13562996,658.94,658.47,1.347]
[1750149259889,1.13562996,658.94,658.48,1.323]
[1750149260289,1.13562996,658.92,658.48,1.323]
[1750149260495,1.13562996,658.89,658.48,1.323]
[1750149260986,1.13562996,658.88,658.48,1.323]
[1750149261586,1.13562996,658.85,658.48,1.323]
[1750149262888,1.13562996,658.78,658.48,1.323]
[1750149263189,1.13562996,658.78,658.49,1.292]
[1750149263388,0.26415667,658.99,658.49,1.292]
[1750149263389,1.13562996,658.77,658.49,1.292]
[1750149263587,1.13562996,658.76,658.49,1.292]
[1750149264090,1.13562996,658.84,658.49,1.292]
[1750149264392,1.13562996,658.86,658.49,1.292]
[1750149267488,1.13562996,658.87,658.49,1.292]
[1750149268393,1.13562996,658.8,658.49,1.292]
[1750149268693,1.13562996,658.78,658.49,1.292]
[1750149269396,1.13562996,658.79,658.49,1.292]
[1750149270491,1.13562996,658.78,658.49,1.292]
[1750149270690,1.13562996,658.8,658.49,1.292]
[1750149270894,1.13562996,658.79,658.49,1.292]
[1750149271495,1.13562996,658.78,658.49,1.292]
[1750149271693,1.13562996,658.77,658.49,1.292]
[1750149271894,1.13562996,658.76,658.49,1.292]
[1750149272090,1.13562996,658.75,658.49,1.292]
[1750149272295,1.13562996,658.76,658.49,1.292]
[1750149272892,1.13562996,658.75,658.49,1.292]
[1750149273294,1.13562996,658.76,658.49,1.292]
[1750149273495,1.13562996,658.75,658.49,1.292]
[1750149274593,1.13562996,658.76,658.49,1.292]
[1750149276298,1.13562996,658.78,658.49,1.292]
[1750149277797,1.13562996,658.79,658.49,1.292]
[1750149278997,1.13562996,658.8,658.49,1.292]
[1750149279200,1.13562996,658.79,658.49,1.292]
[1750149279498,1.13562996,658.8,658.49,1.292]
[1750149280900,1.13562996,658.81,658.49,1.292]
[1750149281304,1.13562996,658.82,658.49,1.292]
[1750149281604,1.13562996,658.83,658.49,1.292]
[1750149282702,1.13562996,658.82,658.49,1.292]
[1750149283108,1.13562996,658.81,658.49,1.292]
[1750149284307,1.13562996,658.82,658.49,1.292]
[1750149285906,1.13562996,658.82,658.5,1.267]
[1750149287410,1.13562996,658.82,658.51,1.046]
[1750149287815,1.13562996,658.81,658.51,1.046]
[1750149289515,1.13562996,658.77,658.51,1.046]
[1750149290516,1.13562996,658.73,658.51,1.046]
[1750149290715,1.13562996,658.74,658.51,1.046]
[1750149293316,1.13562996,658.75,658.51,1.046]
[1750149294019,1.13562996,658.73,658.51,1.046]
[1750149295020,1.13562996,658.72,658.51,1.046]
[1750149295217,1.13562996,658.73,658.51,1.046]
[1750149297420,0.26415667,658.99,658.51,1.046]
[1750149297421,1.13562996,658.74,658.51,1.046]
[1750149298022,0.26415667,658.99,658.51,1.046]
[1750149298222,0.30349934,658.98,658.51,1.046]
[1750149302621,0.30349934,658.98,658.52,0.97]
[1750149302822,0.30349934,658.98,658.52,2.382]
[1750149316234,0.30349934,658.98,658.53,1.069]
[1750149316839,0.30349934,658.98,658.54,1.298]
[1750149328639,0.30349934,658.98,658.55,1.282]
[1750149345945,0.30349934,658.98,658.55,2.332]
[1750149346245,0.30349934,658.98,658.55,3.744]
[1750149349147,1.5134235,658.62,658.55,3.744]
[1750149349452,1.81709335,658.61,658.55,3.744]
[1750149349651,0.30367446,658.6,658.55,3.744]
[1750149359252,0.30367446,658.6,658.55,2.332]
[1750149368363,0.2642961,658.59,658.55,2.332]
[1750149373859,0.2642961,658.59,658.55,1.05]
[1750149386676,0.30367446,658.6,658.55,1.05]
[1750149391283,0.26424392,658.59,658.55,1.05]
[1750149403992,0.26424392,658.59,658.45,1.262]
[1750149407191,0.26424392,658.59,658.45,2.257]
[1750149419399,1.5134235,658.57,658.45,2.257]
[1750149419603,1.5134235,658.56,658.45,2.257]
[1750149419800,1.5134235,658.56,658.45,0.995]
[1750149421104,0.30369751,658.55,658.45,0.995]
[1750149423303,0.30369751,658.55,658.41,1.369]
[1750149426004,0.30369751,658.55,658.41,2.739]
[1750149439317,1.13361995,658.51,658.41,2.739]
[1750149439516,1.13361995,658.5,658.41,2.739]
[1750149439714,1.13361995,658.5,658.41,1.37]
[1750149441314,0.30369751,658.55,658.41,1.37]
[1750149441520,1.13349259,658.53,658.41,1.37]
[1750149441720,1.13349259,658.53,658.41,2.376]
[1750149442219,0.30369751,658.55,658.41,2.376]
[1750149442220,1.13349259,658.54,658.41,2.376]
[1750149442421,1.43719471,658.54,658.41,2.376]
[1750149444423,1.13349259,658.44,658.41,2.376]
[1750149444616,0.26424392,658.59,658.41,2.376]
[1750149444617,0.30375286,658.43,658.41,2.376]
[1750149452319,1.13234755,658.42,658.41,2.376]
[1750149453323,0.30375286,658.43,658.41,2.376]
[1750149463534,1.13279308,658.42,658.41,2.376]
[1750149464032,0.30375286,658.43,658.41,2.376]
[1750149465130,0.30375286,658.43,658.41,1.006]
[1750149474828,0.30375286,658.43,658.29,1.198]
[1750149476829,0.30375286,658.43,658.29,2.078]
[1750149478835,1.1340327,658.4,658.29,2.078]
[1750149481435,0.30375286,658.43,658.29,2.078]
[1750149482240,1.43778556,658.43,658.29,2.078]
[1750149482441,0.30375286,658.43,658.29,2.078]
[1750149484840,1.1340327,658.4,658.29,2.078]
[1750149487440,1.1340327,658.38,658.29,2.078]
[1750149487640,1.1340327,658.37,658.29,2.078]
[1750149488039,1.1340327,658.37,658.29,0.88]
[1750149488239,1.1340327,658.38,658.29,0.88]
[1750149488745,1.1340327,658.37,658.29,0.88]
[1750149489545,1.1340327,658.36,658.29,0.88]
[1750149489745,1.1340327,658.37,658.29,0.88]
[1750149490248,1.1340327,658.36,658.29,0.88]
[1750149490846,1.1340327,658.38,658.29,0.88]
[1750149491047,0.30375286,658.43,658.29,0.88]
[1750149492342,1.81717636,658.43,658.29,0.88]
[1750149492641,0.30375286,658.43,658.29,0.88]
[1750149496249,1.13551197,658.35,658.29,0.88]
[1750149496449,1.13551197,658.36,658.29,0.88]
[1750149496647,1.13551197,658.35,658.29,0.88]
[1750149497046,1.13551197,658.36,658.29,0.88]
[1750149497247,1.13551197,658.35,658.29,0.88]
[1750149498543,1.13551197,658.36,658.29,0.88]
[1750149499142,1.13551197,658.37,658.29,0.88]
[1750149499447,1.43929251,658.37,658.29,0.88]
[1750149501446,0.30378054,658.37,658.29,0.88]
[1750149503550,1.81720404,658.37,658.29,0.88]
[1750149503946,0.30378054,658.37,658.29,0.88]
[1750149507957,0.30378054,658.37,658.24,1.14]
[1750149511559,1.13532859,658.27,658.24,1.14]
[1750149512959,1.13532859,658.26,658.24,1.14]
[1750149514060,1.13532859,658.25,658.24,1.14]
[1750149518167,0.30378054,658.37,658.24,1.14]
[1750149519464,1.1352678,658.25,658.24,1.14]
[1750149519669,1.1352678,658.3,658.24,1.14]
[1750149521470,1.1352678,658.33,658.24,1.14]
[1750149521774,1.4390668,658.33,658.24,1.14]
[1750149522379,1.1352678,658.32,658.24,1.14]
[1750149522973,1.1352678,658.29,658.24,1.14]
[1750149523374,0.303799,658.33,658.24,1.14]
[1750149526470,1.8172225,658.33,658.24,1.14]
[1750149526670,0.303799,658.33,658.24,1.14]
[1750149527575,1.8172225,658.33,658.24,1.14]
[1750149528777,0.303799,658.33,658.24,1.14]
[1750149532983,1.8172225,658.33,658.24,1.14]
[1750149533582,1.5134235,658.32,658.24,1.14]
[1750149533778,0.30380823,658.31,658.24,1.14]
[1750149535178,0.30380823,658.31,658.23,1.074]
[1750149541489,1.81723173,658.31,658.23,1.074]
[1750149542592,1.5134235,658.3,658.23,1.074]
[1750149542795,1.81724096,658.29,658.23,1.074]
[1750149542993,0.30382208,658.28,658.23,1.074]
[1750149544596,0.30382208,658.28,658.17,1.157]
[1750149545595,1.81724558,658.28,658.17,1.157]
[1750149546193,0.30382208,658.28,658.17,1.157]
[1750149546592,1.81724558,658.28,658.17,1.157]
[1750149548698,0.30382208,658.28,658.17,1.157]
[1750149550899,0.30382208,658.28,657.29,1.13039682]
[1750149551195,1.13586145,658.12,657.28,1.13039682]
[1750149551399,1.13586145,658.05,657.21,1.13039682]
[1750149551597,0.30382208,658.28,656.79,2.26463133]
[1750149551796,0.30382208,658.28,655.64,5.28413979]
[1750149552801,1.13582823,658.03,657.24,1.13572076]
[1750149553901,1.13582823,658.03,657.25,1.13572076]
[1750149554501,1.13582823,658.02,657.26,1.13572076]
[1750149554898,1.13582823,658.02,657.27,0.896]
[1750149555200,1.13582823,658.02,657.28,1.209]
[1750149555398,1.13582823,658.02,657.28,2.352]
[1750149555898,1.13582823,658.02,657.29,1.173]
[1750149556096,1.13582823,658.01,657.29,1.173]
[1750149556297,1.13582823,658.02,657.29,1.173]
[1750149557697,1.13582823,658.01,657.29,1.173]
[1750149558402,1.13582823,658.02,657.29,1.173]
[1750149558903,1.13582823,658.03,657.29,1.173]
[1750149559398,1.13582823,658.02,657.29,1.173]
[1750149561303,1.13582823,658.01,657.29,1.173]
[1750149561602,1.13582823,658.13,657.37,1.13572076]
[1750149561999,1.13582823,658.13,657.34,1.13572076]
[1750149562204,1.13582823,658.1,657.35,1.13572076]
[1750149562599,1.13582823,658.1,657.36,1.13572076]
[1750149562903,1.13582823,658.1,657.35,1.13572076]
[1750149563600,1.13582823,658.09,657.35,1.13572076]
[1750149564100,1.13582823,658.06,657.31,1.13572076]
[1750149564605,1.13582823,658.0,657.33,1.13572076]
[1750149564805,1.13582823,658.0,657.29,1.173]
[1750149564806,1.13582823,658.01,657.31,1.13572076]
[1750149565305,1.13582823,658.02,657.29,1.173]
[1750149566206,1.13582823,658.03,657.29,1.173]
[1750149567207,1.13582823,658.02,657.29,1.173]
[1750149567804,1.13582823,658.04,657.29,1.173]
[1750149568104,1.13582823,658.04,657.28,2.352]
[1750149568808,1.13582823,658.03,657.28,2.352]
[1750149569307,1.13582823,658.04,657.28,2.352]
[1750149569505,1.13582823,658.04,657.28,1.209]
[1750149569810,1.13582823,658.03,657.28,1.209]
[1750149570204,1.13582823,658.04,657.28,1.209]
[1750149570605,1.13582823,658.03,657.28,1.209]
[1750149571507,1.13582823,658.03,657.29,1.022]
[1750149572206,1.13582823,658.02,657.29,1.022]
[1750149572510,1.13582823,658.01,657.3,1.343]
[1750149574609,1.13582823,658.01,657.3,2.47872076]
[1750149575313,1.13582823,658.01,657.3,1.343]
[1750149575612,1.13582823,658.02,657.3,1.343]
[1750149576613,1.13582823,658.0,657.3,2.47872076]
[1750149577415,1.13582823,658.0,657.31,1.13572076]
[1750149577611,1.13582823,657.99,657.31,1.13572076]
[1750149578411,1.13582823,657.99,657.32,1.13572076]
[1750149578717,1.13582823,657.91,657.3,1.343]
[1750149578918,1.13582823,657.88,657.3,1.343]
[1750149579616,1.13582823,657.87,657.3,1.343]
[1750149579819,1.13582823,657.86,657.3,1.343]
[1750149580319,1.13582823,657.88,657.3,1.343]
[1750149581017,1.13582823,657.87,657.3,1.343]
[1750149581315,1.13582823,657.88,657.3,1.343]
[1750149581522,1.13582823,657.86,657.3,1.343]
[1750149582215,1.13582823,657.88,657.3,1.343]
[1750149582416,1.13582823,657.87,657.3,1.343]
[1750149582616,1.13582823,657.86,657.3,1.343]
[1750149582818,1.13582823,657.83,657.3,1.343]
[1750149583017,1.13582823,657.82,657.3,1.343]
[1750149583217,1.13582823,657.84,657.3,1.343]
[1750149584118,1.13582823,657.83,657.3,1.343]
[1750149584317,1.13582823,657.84,657.3,1.343]
[1750149585218,1.13582823,657.85,657.3,1.343]
[1750149585619,1.13582823,657.84,657.3,1.343]
[1750149585822,1.13582823,657.87,657.3,1.343]
[1750149586523,1.13582823,657.88,657.3,1.343]
[1750149586720,1.43983503,657.88,657.3,1.343]
[1750149587528,0.3040068,657.88,657.31,1.126]
[1750149588524,0.3040068,657.88,657.32,1.487]
[1750149591630,0.26466294,657.75,657.32,1.487]
[1750149593330,0.26466294,657.75,657.33,1.448]
[1750149617455,0.26466294,657.75,657.31,1.126]
[1750149620555,0.26466294,657.75,657.32,1.646]
[1750149621356,0.26466294,657.75,657.33,1.436]
[1750149632766,0.26466294,657.75,657.34,0.926]
[1750149634561,1.13526263,657.74,657.34,0.926]
[1750149635266,1.13526263,657.74,657.35,1.112]
[1750149636564,1.39992557,657.75,657.36,1.443]
[1750149636762,1.13526263,657.74,657.36,1.443]
[1750149637265,1.13526263,657.73,657.36,1.443]
[1750149638362,1.13526263,657.7,657.36,1.443]
[1750149638966,1.13526263,657.65,657.36,1.443]
[1750149639167,1.13526263,657.63,657.36,1.443]
[1750149639564,1.13526263,657.64,657.36,1.443]
[1750149639764,1.13526263,657.62,657.36,1.443]
[1750149639964,1.13526263,657.61,657.36,1.443]
[1750149640169,1.13526263,657.6,657.36,1.443]
[1750149640370,0.26474045,657.56,657.36,1.443]
[1750149655782,0.26474045,657.56,657.37,1.008]
[1750149671697,0.26474045,657.56,657.35,1.112]
[1750149675402,0.26474045,657.56,657.36,1.246]
[1750149680209,0.26474045,657.56,657.37,1.187]
[1750149704124,0.26474045,657.56,657.38,0.902]
[1750149711127,0.26474045,657.56,657.39,1.047]
[1750149716429,0.3040068,657.88,657.39,1.047]
[1750149716831,0.26461061,657.77,657.39,1.047]
[1750149720040,0.26461061,657.77,657.4,1.14]
[1750149720639,0.26461061,657.77,657.41,1.17]
[1750149722534,0.26461061,657.77,657.42,1.01]
[1750149724441,0.3040068,657.88,657.42,1.01]
[1750149725641,0.26457641,657.93,657.42,1.01]
[1750149734254,0.26457641,657.93,657.43,0.907]
[1750149737249,1.13565849,658.54,657.43,0.907]
[1750149737453,0.30370674,658.53,657.43,0.907]
[1750149737654,0.26448592,658.04,657.43,0.907]
[1750149737854,0.30370674,658.53,657.43,0.907]
[1750149738053,0.26448693,658.04,657.43,0.907]
[1750149738455,0.30370674,658.53,657.43,0.907]
[1750149738653,0.26447688,658.09,657.43,0.907]
[1750149738951,0.30370674,658.53,657.43,0.907]
[1750149739155,0.26447688,658.09,657.43,0.907]
[1750149739455,0.30370674,658.53,657.43,0.907]
[1750149740355,0.26446884,658.26,657.43,0.907]
[1750149750162,0.26446884,658.26,657.44,2.532]
[1750149759770,0.26446884,658.26,657.45,1.12738668]
[1750149759972,0.26446884,658.26,657.44,3.65938668]
[1750149760473,0.26446884,658.26,657.45,1.12738668]
[1750149761778,0.26446884,658.26,657.44,3.65938668]
[1750149762078,0.26446884,658.26,657.44,2.45038668]
[1750149762377,0.26446884,658.26,657.45,1.12738668]
[1750149763383,0.26446884,658.26,657.44,2.45038668]
[1750149764579,0.26446884,658.26,657.45,1.318]
[1750149766282,0.26446884,658.26,657.45,2.44538668]
[1750149766877,0.26446884,658.26,657.46,0.847]
[1750149767379,0.26446884,658.26,657.46,1.97438668]
[1750149768179,0.26446884,658.26,657.47,1.12738668]
[1750149768384,0.26446884,658.26,657.48,1.12738668]
[1750149769379,0.26446884,658.26,657.49,1.12738668]
[1750149770685,0.26446884,658.26,657.5,1.12738668]
[1750149771386,0.26446884,658.26,657.51,1.12738668]
[1750149771782,0.26446884,658.26,657.52,1.12738668]
[1750149772082,0.26446884,658.26,657.51,1.12738668]
[1750149772286,0.26446884,658.26,657.52,1.12738668]
[1750149773082,0.26446884,658.26,657.53,1.12738668]
[1750149773283,0.26446884,658.26,657.55,1.12738668]
[1750149773488,0.26446884,658.26,657.54,1.12738668]
[1750149773689,0.26446884,658.26,657.55,1.12738668]
[1750149773886,0.26446884,658.26,657.56,1.12738668]
[1750149774085,0.26446884,658.26,657.65,1.12738668]
[1750149774286,0.26446884,658.26,657.67,1.12738668]
[1750149775286,0.26446884,658.26,657.62,1.12738668]
[1750149775492,0.26446884,658.26,657.68,0.998]
[1750149776188,0.26446884,658.26,657.69,1.12738668]
[1750149776487,0.26446884,658.26,657.71,1.12738668]
[1750149776787,0.26446884,658.26,657.72,1.12738668]
[1750149776993,0.26446884,658.26,657.71,1.12738668]
[1750149777490,0.26446884,658.26,657.77,1.12738668]
[1750149777788,0.26446884,658.26,657.76,1.12738668]
[1750149778291,0.26446884,658.26,657.78,1.12738668]
[1750149778587,0.26446884,658.26,657.79,1.12738668]
[1750149778891,0.26446884,658.26,657.78,1.12738668]
[1750149779187,0.26446884,658.26,657.77,1.12738668]
[1750149779490,0.26446884,658.26,657.68,0.998]
[1750149779491,0.26446884,658.26,657.78,1.12738668]
[1750149779688,0.26446884,658.26,657.77,1.12738668]
[1750149780087,0.26446884,658.26,657.78,1.12738668]
[1750149781094,0.26446884,658.26,657.75,1.12738668]
[1750149782193,0.26446884,658.26,657.76,1.316]
[1750149784191,0.26446884,658.26,657.77,1.187]
[1750149798700,0.26446884,658.26,657.78,1.275]
[1750149800205,0.26446884,658.26,657.79,1.481]
[1750149809113,1.39112988,658.26,657.79,1.481]
[1750149809610,0.26446884,658.26,657.79,1.481]
[1750149810610,1.12666104,658.25,657.79,1.481]
[1750149810914,1.12666104,658.23,657.79,1.481]
[1750149811316,1.12666104,658.24,657.79,1.481]
[1750149811511,1.12666104,658.23,657.79,1.481]
[1750149811912,1.12666104,658.18,657.79,1.481]
[1750149812216,1.12666104,658.18,657.77,1.187]
[1750149812411,1.12666104,658.19,657.77,1.187]
[1750149813221,1.12666104,658.19,657.78,1.082]
[1750149814515,1.12666104,658.16,657.78,1.082]
[1750149815623,1.12666104,658.16,657.79,0.967]
[1750149815828,1.12666104,658.17,657.79,0.967]
[1750149817222,1.12666104,658.19,657.79,0.967]
[1750149817621,1.12666104,658.21,657.79,0.967]
[1750149817823,0.303859,658.2,657.79,0.967]
[1750149819819,1.43052004,658.2,657.79,0.967]
[1750149820422,0.303859,658.2,657.79,0.967]
[1750149822929,0.303859,658.2,657.8,1.013]
[1750149824429,0.303859,658.2,657.81,1.111]
[1750149825330,1.12666104,658.18,657.81,1.111]
[1750149825630,1.43053389,658.17,657.81,1.111]
[1750149825828,0.30387747,658.16,657.81,1.111]
[1750149826226,1.43053851,658.16,657.81,1.111]
[1750149826430,0.30387747,658.16,657.81,1.111]
[1750149827830,0.30387747,658.16,657.82,0.979]
[1750149844641,0.30387747,658.16,657.83,1.555]
[1750149846643,1.12666104,658.15,657.83,1.555]
[1750149846942,0.30388671,658.14,657.83,1.555]
[1750149848050,1.43054775,658.14,657.83,1.555]
[1750149848248,1.12666104,658.12,657.83,1.555]
[1750149848546,1.4305616,658.11,657.83,1.555]
[1750149848745,1.12666104,658.09,657.83,1.555]
[1750149848950,1.12666104,658.06,657.83,1.555]
[1750149849150,1.12666104,658.05,657.83,1.555]
[1750149849650,0.30392365,658.06,657.83,1.555]
[1750149850450,1.43058469,658.06,657.83,1.555]
[1750149850647,0.30392365,658.06,657.83,1.555]
[1750149850847,1.43058469,658.06,657.83,1.555]
[1750149851953,1.12666104,658.05,657.83,1.555]
[1750149852153,0.30392365,658.06,657.83,1.555]
[1750149862459,0.30392365,658.06,657.84,1.036]
[1750149869965,0.30392365,658.06,657.85,1.205]
[1750149872762,1.43661979,658.06,657.85,1.205]
[1750149873166,0.30392365,658.06,657.85,1.205]
[1750149873466,1.43661979,658.06,657.85,1.205]
[1750149873962,1.13269614,658.05,657.85,1.205]
[1750149874663,1.13269614,658.04,657.85,1.205]
[1750149875363,1.13269614,658.03,657.85,1.205]
[1750149876169,1.13269614,658.02,657.85,1.205]
[1750149878873,1.13269614,658.03,657.85,1.205]
[1750149879770,0.30392365,658.06,657.85,1.205]
[1750149883073,0.30392365,658.06,657.86,0.885]
[1750149887377,0.30392365,658.06,657.87,0.881]
[1750149906281,0.30392365,658.06,657.86,0.885]
[1750149908687,0.30392365,658.06,657.87,0.799]
[1750149912494,0.30392365,658.06,657.88,1.157]
[1750149912996,0.26446884,658.26,657.88,1.157]
[1750149916697,0.26446884,658.26,657.89,1.043]
[1750149922101,1.13269614,658.57,657.89,1.043]
[1750149922402,0.26438043,658.36,657.89,1.043]
[1750149924806,0.26438043,658.36,657.9,0.853]
[1750149934813,0.56816559,658.36,657.9,0.853]
[1750149936020,0.94436027,658.35,657.9,0.853]
[1750149936215,0.94436027,658.34,657.9,0.853]
[1750149936415,0.94436027,658.33,657.9,0.853]
[1750149936617,0.94436027,658.32,657.9,0.853]
[1750149936820,0.94436027,658.34,657.9,0.853]
[1750149937025,0.94436027,658.33,657.9,0.853]
[1750149937216,0.94436027,658.32,657.9,0.853]
[1750149937416,0.94436027,658.34,657.9,0.853]
[1750149937714,0.94436027,658.33,657.9,0.853]
[1750149937923,0.94436027,658.32,657.87,0.799]
[1750149938220,1.40513901,658.33,657.87,0.799]
[1750149938420,0.94436027,658.35,657.87,0.799]
[1750149938615,0.56816559,658.36,657.87,0.799]
[1750149938616,0.94436027,658.34,657.87,0.799]
[1750149938815,0.94436027,658.35,657.87,0.799]
[1750149939018,0.94436027,658.34,657.87,0.799]
[1750149939219,0.94436027,658.33,657.87,0.799]
[1750149939420,1.97345206,658.36,657.87,0.799]
[1750149939721,1.40528647,658.35,657.87,0.799]
[1750149940016,0.94436027,658.35,657.87,0.799]
[1750149940216,0.56816559,658.36,657.87,0.799]